bitfinex/quotes_ETHUSD_20251213
["timestamp","ask_amount","ask_price","bid_price","bid_amount"]
[1765646889285,5.59397361,3101.1,3101.0,0.002]
[1765646889450,33.95989061,3101.1,3101.0,0.002]
[1765646889951,25.49680761,3101.1,3101.0,0.002]
[1765646890577,30.66293461,3101.1,3101.0,0.002]
[1765646891149,30.20813461,3101.1,3101.0,0.4543]
[1765646891476,29.87830061,3101.1,3101.0,0.9258]
[1765646891778,25.24493761,3101.1,3101.0,0.4543]
[1765646892077,22.79356561,3101.1,3101.0,0.9258]
[1765646892452,26.78454661,3101.1,3101.0,0.4543]
[1765646893381,28.08954661,3101.1,3101.0,0.4543]
[1765646893563,28.08955542,3101.1,3101.0,0.4543]
[1765646894385,5.14948242,3101.1,3101.0,0.4543]
[1765646894683,28.41237442,3101.1,3101.0,0.4543]
[1765646895579,33.97019942,3101.1,3101.0,0.002]
[1765646895884,26.78782042,3101.1,3101.0,0.4543]
[1765646896580,5.14948242,3101.1,3101.0,0.4543]
[1765646896779,29.20417846,3101.1,3101.0,0.4543]
[1765646896954,26.62587846,3101.1,3101.0,0.4543]
[1765646897968,26.62587846,3101.1,3101.0,0.9258]
[1765646898454,26.62587846,3101.1,3101.0,0.4543]
[1765646898655,5.14954046,3101.1,3101.0,0.4543]
[1765646898850,21.85458746,3101.1,3101.0,0.9258]
[1765646899784,33.30438246,3101.1,3101.0,0.9258]
[1765646900185,33.75918246,3101.1,3101.0,0.002]
[1765646900391,34.25788246,3101.1,3101.0,0.002]
[1765646900559,33.75918246,3101.1,3101.0,0.002]
[1765646900885,33.51545746,3101.1,3101.0,0.002]
[1765646901084,33.21474223,3101.1,3101.0,0.002]
[1765646901289,33.5154719,3101.1,3101.0,0.002]
[1765646902261,33.9720719,3101.1,3101.0,0.002]
[1765646903488,34.4504719,3101.1,3101.0,0.002]
[1765646904066,6.0845549,3101.1,3101.0,0.002]
[1765646904276,34.4504719,3101.1,3101.0,0.002]
[1765646904590,33.9720719,3101.1,3101.0,0.002]
[1765646905158,5.6061549,3101.1,3101.0,0.002]
[1765646905389,33.9720719,3101.1,3101.0,0.002]
[1765646907096,23.5724419,3101.1,3101.0,0.4994]
[1765646907391,28.6131989,3101.1,3101.0,0.4994]
[1765646907563,28.2903799,3101.1,3101.0,0.4994]
[1765646908293,23.6135449,3101.1,3101.0,0.002]
[1765646908958,17.7205629,3101.1,3101.0,0.4994]
[1765646909163,15.7332199,3101.1,3101.0,0.4994]
[1765646909391,5.1495549,3101.1,3101.0,0.4994]
[1765646909594,18.0360469,3101.1,3101.0,0.4994]
[1765646909794,10.1705999,3101.1,3101.0,0.9528]
[1765646910493,17.4419829,3101.1,3101.0,0.9528]
[1765646910693,9.2103629,3101.1,3101.0,0.9528]
[1765646910884,8.5737809,3101.1,3101.0,0.9528]
[1765646911083,7.0597809,3101.1,3101.0,0.9528]
[1765646911396,7.5687809,3101.1,3101.0,0.9528]
[1765646911601,8.9736159,3101.1,3101.0,0.9528]
[1765646911989,7.9297809,3101.1,3101.0,0.9528]
[1765646912391,7.5720089,3101.1,3101.0,0.9528]
[1765646912594,7.5698339,3101.1,3101.0,0.9528]
[1765646913603,9.4057129,3101.1,3101.0,0.9528]
[1765646914502,16.7792099,3101.1,3101.0,0.9528]
[1765646915374,15.2993939,3101.1,3101.0,0.9528]
[1765646915571,17.9172759,3101.1,3101.0,0.9528]
[1765646915786,17.5945569,3101.1,3101.0,0.9528]
[1765646915992,9.5172019,3101.1,3101.0,0.9528]
[1765646916582,10.0961659,3101.1,3101.0,0.9528]
[1765646917681,13.1905159,3101.1,3101.0,0.9528]
[1765646917893,7.9308339,3101.1,3101.0,0.9528]
[1765646918605,18.6830259,3101.1,3101.0,0.9528]
[1765646918825,16.8515939,3101.1,3101.0,0.9528]
[1765646919180,16.4905939,3101.1,3101.0,0.9528]
[1765646919607,18.2610939,3101.1,3101.0,0.9528]
[1765646919907,16.8515939,3101.1,3101.0,0.9528]
[1765646920303,17.3077939,3101.1,3101.0,0.002]
[1765646920505,19.36102911,3101.1,3101.0,0.002]
[1765646920809,30.03053011,3101.1,3101.0,0.002]
[1765646921180,29.55013011,3101.1,3101.0,0.002]
[1765646921505,23.45038611,3101.1,3101.0,0.002]
[1765646921701,27.52176211,3101.1,3101.0,0.002]
[1765646922713,33.53969511,3101.1,3101.0,0.002]
[1765646923004,30.51623911,3101.1,3101.0,0.002]
[1765646923190,29.52093611,3101.1,3101.0,0.002]
[1765646923781,31.27497211,3101.1,3101.0,0.002]
[1765646924812,36.02490711,3101.1,3101.0,0.002]
[1765646924993,31.48885711,3101.1,3101.0,0.002]
[1765646925192,27.65293611,3101.1,3101.0,0.002]
[1765646925812,30.09172211,3101.1,3101.0,0.002]
[1765646926011,29.76890311,3101.1,3101.0,0.002]
[1765646926211,29.44608411,3101.1,3101.0,0.002]
[1765646926813,35.29172211,3101.1,3101.0,0.002]
[1765646927110,34.64608411,3101.1,3101.0,0.002]
[1765646927284,29.44608411,3101.1,3101.0,0.002]
[1765646927909,30.89266811,3101.1,3101.0,0.002]
[1765646928111,30.57389211,3101.1,3101.0,0.002]
[1765646929013,32.81189211,3101.1,3101.0,0.002]
[1765646929998,32.96984911,3101.1,3101.0,0.002]
[1765646930196,32.48503011,3101.1,3101.0,0.002]
[1765646931110,33.28917311,3101.1,3101.0,0.002]
[1765646931720,32.64353511,3101.1,3101.0,0.002]
[1765646932020,33.28917311,3101.1,3101.0,0.002]
[1765646932221,23.81761211,3101.1,3101.0,0.002]
[1765646932397,6.3298349,3101.1,3101.0,0.9528]
[1765646932603,6.8388349,3101.1,3101.0,0.9528]
[1765646933104,8.6808779,3101.1,3101.0,0.9528]
[1765646933311,6.8356069,3101.1,3101.0,0.9528]
[1765646933866,4.7440509,3101.1,3101.0,0.9528]
[1765646934223,4.61486717,3101.1,3101.0,0.9528]
[1765646950875,4.61486717,3101.1,3101.0,0.4994]
[1765646953655,5.08256717,3101.1,3101.0,0.002]
[1765646954336,4.61486717,3101.1,3101.0,0.4826]
[1765646954725,4.74403422,3101.1,3101.0,0.4826]
[1765646957761,4.44330455,3101.1,3101.0,0.4826]
[1765646957933,4.74469612,3101.1,3101.0,0.4826]
[1765646959375,4.74469612,3101.1,3101.0,0.9731]
[1765646961734,4.74469612,3101.1,3101.0,0.4826]
[1765646963748,5.20329612,3101.1,3101.0,0.002]
[1765646966741,4.74469612,3101.1,3101.0,0.002]
[1765646966940,4.74469612,3101.1,3101.0,0.4772]
[1765646971769,5.21279612,3101.1,3101.0,0.002]
[1765646972282,6.10524156,3101.1,3101.0,0.002]
[1765646972481,6.59214156,3101.1,3101.0,0.002]
[1765646974482,5.21279612,3101.1,3101.0,0.002]
[1765646977776,0.405504,3101.0,3100.8,0.002]
[1765646977949,0.70689557,3100.9,3100.8,0.002]
[1765646978355,0.70689557,3100.9,3100.8,0.4772]
[1765646978683,4.57223705,3100.9,3100.8,0.4772]
[1765646979584,5.04033705,3100.9,3100.8,0.002]
[1765646979956,4.57223705,3100.9,3100.8,0.4772]
[1765646980156,5.08123705,3100.9,3100.8,0.9427]
[1765646980880,5.08123705,3100.9,3100.8,0.4772]
[1765646983595,4.57223705,3100.9,3100.8,0.4772]
[1765646983893,5.08123705,3100.9,3100.8,0.9427]
[1765646990513,5.08123705,3100.9,3100.8,0.4772]
[1765646990998,5.08123705,3100.9,3100.8,0.9427]
[1765646996008,5.08123705,3100.9,3100.8,0.9599]
[1765646997614,5.08123705,3100.9,3100.8,0.4772]
[1765646997813,5.55303705,3100.9,3100.8,0.002]
[1765647000018,6.03013705,3100.9,3100.8,0.002]
[1765647000931,6.03021155,3100.9,3100.8,0.002]
[1765647001388,5.55311155,3100.9,3100.8,0.002]
[1765647001826,7.27817528,3100.9,3100.8,0.002]
[1765647002031,7.46857528,3100.9,3100.8,0.002]
[1765647002336,36.23999628,3100.9,3100.8,0.002]
[1765647002494,16.20003129,3100.8,3100.7,0.002]
[1765647002709,16.98049736,3100.8,3100.7,0.002]
[1765647002907,18.93226265,3100.8,3100.7,0.002]
[1765647003441,19.06145473,3100.8,3100.7,0.002]
[1765647004447,22.28642893,3100.8,3100.7,0.002]
[1765647009317,35.43829393,3100.8,3100.7,0.002]
[1765647009520,35.43829393,3100.8,3100.5,0.002]
[1765647009521,0.58047529,3100.6,3100.5,0.002]
[1765647009830,30.96292209,3100.6,3100.5,0.002]
[1765647010146,31.44002209,3100.6,3100.5,0.002]
[1765647010321,34.79441684,3100.6,3100.5,0.002]
[1765647011145,35.19992084,3100.6,3100.5,0.002]
[1765647011325,6.83400384,3100.6,3100.5,0.002]
[1765647011529,35.19992084,3100.6,3100.5,0.002]
[1765647012336,6.83400384,3100.6,3100.5,0.002]
[1765647012544,35.19992084,3100.6,3100.5,0.002]
[1765647014529,19.64202184,3100.6,3100.5,0.002]
[1765647015550,29.45813784,3100.6,3100.5,0.002]
[1765647015736,23.04236484,3100.6,3100.5,0.002]
[1765647016536,21.41407684,3100.6,3100.5,0.002]
[1765647017457,0.405504,3100.5,3100.4,0.002]
[1765647017646,18.07222665,3100.5,3100.4,0.002]
[1765647018257,18.20143959,3100.5,3100.4,0.002]
[1765647018452,35.95232683,3100.5,3100.4,0.002]
[1765647027860,7.58640983,3100.5,3100.4,0.002]
[1765647028051,34.00056154,3100.5,3100.4,0.002]
[1765647028864,5.63464454,3100.5,3100.4,0.002]
[1765647029080,34.00056154,3100.5,3100.4,0.002]
[1765647029883,33.52346154,3100.5,3100.4,0.002]
[1765647030057,33.98306154,3100.5,3100.4,0.002]
[1765647030555,31.27182554,3100.5,3100.4,0.002]
[1765647030990,33.98306154,3100.5,3100.4,0.002]
[1765647032173,17.01146554,3100.5,3100.4,0.4579]
[1765647032470,0.58047529,3100.4,3100.3,0.11525762]
[1765647032669,20.14755136,3100.4,3100.3,0.11525762]
[1765647032867,24.22260263,3100.4,3100.3,0.57115762]
[1765647033181,22.55103263,3100.4,3100.3,0.57115762]
[1765647033382,23.48743263,3100.4,3100.3,0.11525762]
[1765647033948,33.81515263,3100.4,3100.3,0.11525762]
[1765647034252,30.48777163,3100.4,3100.3,0.11525762]
[1765647034453,29.17485163,3100.4,3100.3,0.11525762]
[1765647034642,22.92268963,3100.4,3100.3,0.11525762]
[1765647034847,4.97053563,3100.4,3100.3,0.57115762]
[1765647035069,20.76018363,3100.4,3100.3,0.57115762]
[1765647035576,17.04436384,3100.4,3100.2,0.002]
[1765647035753,0.405504,3099.9,3099.7,0.002]
[1765647036070,30.36516236,3099.8,3099.7,0.002]
[1765647036474,30.95402165,3099.8,3099.7,0.002]
[1765647036674,31.43268546,3099.8,3099.7,0.002]
[1765647037075,34.65870004,3099.8,3099.7,0.002]
[1765647038140,23.66509504,3099.8,3099.7,0.002]
[1765647038372,24.63369504,3099.8,3099.7,0.002]
[1765647039075,34.47290004,3099.8,3099.7,0.002]
[1765647040440,34.01330004,3099.8,3099.7,0.002]
[1765647040666,20.18801804,3099.8,3099.7,0.002]
[1765647041058,34.47290004,3099.8,3099.7,0.002]
[1765647042184,28.79664236,3099.8,3099.7,0.4579]
[1765647042360,0.43072536,3099.8,3099.7,0.9136]
[1765647042557,0.30146607,3099.8,3099.7,0.9136]
[1765647045052,0.30146607,3099.8,3099.7,4.13971865]
[1765647045252,0.30146607,3099.8,3099.7,4.8765212]
[1765647046269,0.30146607,3099.9,3099.7,4.8765212]
[1765647046513,0.30146607,3099.8,3099.7,3.9649212]
[1765647046781,0.30146607,3099.9,3099.7,3.9649212]
[1765647046953,0.30146607,3099.9,3099.8,0.4557]
[1765647047154,0.30146607,3100.2,3099.8,4.90224031]
[1765647047393,0.51,3100.3,3100.2,0.6516]
[1765647047679,0.30011355,3100.3,3100.2,0.6516]
[1765647047994,0.51,3100.9,3100.2,1.1073]
[1765647048153,0.30011355,3100.8,3100.3,0.4557]
[1765647048352,0.30011355,3100.7,3100.3,0.4557]
[1765647048563,0.30011355,3100.6,3100.3,0.4557]
[1765647048765,0.30011355,3100.8,3100.3,0.4557]
[1765647048979,0.30011355,3100.7,3100.3,0.4557]
[1765647049185,0.30011355,3100.8,3100.3,0.4557]
[1765647049383,0.51,3100.9,3100.3,0.4557]
[1765647049384,0.30011355,3100.7,3100.3,3.68109448]
[1765647049681,0.30011355,3100.8,3100.4,1.16593816]
[1765647049882,0.30011355,3100.7,3100.4,1.16593816]
[1765647050085,0.30011355,3100.8,3100.5,0.4557]
[1765647050456,0.30011355,3100.8,3100.7,0.4559]
[1765647051163,0.81011355,3100.9,3100.7,0.9116]
[1765647051363,0.81011355,3100.9,3100.8,0.4559]
[1765647051578,0.81011355,3100.9,3100.8,0.9116]
[1765647051980,0.51,3100.9,3100.8,0.9116]
[1765647052279,0.30011355,3101.0,3100.8,0.9116]
[1765647052479,3.22508645,3101.7,3100.9,0.4557]
[1765647052480,3.22466291,3101.1,3100.9,0.4557]
[1765647052686,0.30011355,3101.0,3100.9,0.4557]
[1765647053181,0.30011355,3101.0,3100.9,0.9116]
[1765647054658,0.30011355,3101.2,3100.9,0.9116]
[1765647054960,0.30011355,3101.3,3101.2,0.6548]
[1765647055152,0.30011355,3101.5,3101.2,1.1077]
[1765647055355,0.30011355,3101.5,3101.3,0.4529]
[1765647055555,0.88058884,3101.5,3101.4,0.4771]
[1765647055957,0.88058884,3101.5,3101.4,0.93]
[1765647056384,4.10483517,3101.5,3101.4,0.93]
[1765647057486,0.88058884,3101.5,3101.4,0.93]
[1765647058596,0.58047529,3101.5,3101.4,0.93]
[1765647060869,3.80472162,3101.5,3101.4,0.4771]
[1765647063584,0.58047529,3101.4,3101.2,0.6518]
[1765647063988,0.58047529,3101.3,3100.9,0.4529]
[1765647064188,0.58047529,3101.3,3100.9,0.82068445]
[1765647064495,0.58047529,3101.3,3101.2,0.4771]
[1765647065190,0.58047529,3101.3,3101.2,0.93]
[1765647065901,0.58047529,3101.5,3101.2,0.93]
[1765647066100,0.58047529,3101.5,3101.3,0.4529]
[1765647066400,0.58047529,3101.4,3101.3,0.4529]
[1765647066808,0.58047529,3101.5,3101.3,0.93]
[1765647066976,0.58047529,3101.5,3101.4,0.4771]
[1765647067177,0.58047529,3101.5,3101.4,0.93]
[1765647068214,0.87938479,3101.5,3101.4,0.93]
[1765647069210,0.2989095,3101.5,3101.4,0.93]
[1765647069410,0.58047529,3101.5,3101.4,0.93]
[1765647069616,0.87938479,3101.5,3101.4,0.93]
[1765647069913,0.001,3101.7,3101.4,0.93]
[1765647070213,0.001,3101.7,3101.4,0.4771]
[1765647070389,0.4696,3101.5,3101.1,0.1867]
[1765647070706,0.001,3101.7,3101.2,0.4529]
[1765647071001,0.30027291,3101.7,3101.4,0.4771]
[1765647072005,0.58047529,3101.5,3101.4,0.4771]
[1765647072204,0.8797482,3101.5,3101.4,0.4771]
[1765647072595,0.29927291,3101.5,3101.4,0.4771]
[1765647072805,0.29927291,3101.6,3101.4,0.4771]
[1765647073016,0.29927291,3101.5,3101.1,0.1867]
[1765647073222,0.29927291,3101.4,3101.2,0.34114356]
[1765647073377,0.29927291,3101.3,3101.1,0.1867]
[1765647073581,0.29927291,3101.5,3101.2,0.4529]
[1765647073808,0.29927291,3101.4,3101.2,0.93]
[1765647074015,0.29927291,3101.5,3101.2,0.4529]
[1765647074208,0.29927291,3101.4,3101.3,0.93]
[1765647074407,0.29927291,3101.4,3101.3,0.4771]
[1765647075111,0.29927291,3101.4,3101.3,0.93]
[1765647077393,0.29927291,3101.4,3101.3,1.36413567]
[1765647079109,0.3004608,3101.4,3101.3,0.4771]
[1765647079287,0.3004608,3101.4,3101.3,0.93]
[1765647080001,0.3004608,3101.4,3101.1,0.1867]
[1765647080311,0.3004608,3101.3,3100.7,7.56400875]
[1765647080516,6.4485025,3101.5,3100.8,0.4529]
[1765647080517,0.3004608,3101.2,3100.8,0.4529]
[1765647080819,0.3004608,3101.1,3100.9,0.80169088]
[1765647081015,0.3004608,3101.0,3100.9,0.80169088]
[1765647081220,0.3004608,3101.0,3100.9,1.25459088]
[1765647081388,0.3004608,3101.0,3100.9,1.73169088]
[1765647083322,0.3004608,3101.0,3100.9,1.27879088]
[1765647083702,0.3004608,3101.0,3100.9,1.77679088]
[1765647087521,0.3004608,3101.0,3100.9,5.00166107]
[1765647090621,0.3004608,3101.0,3100.9,1.77679088]
[1765647091024,0.3004608,3101.0,3100.9,5.00166107]
[1765647094429,0.30069837,3101.0,3100.9,5.00166107]
[1765647094629,0.30069837,3101.0,3100.9,0.80169088]
[1765647094816,0.30069837,3101.0,3100.7,3.22501734]
[1765647095001,0.30069837,3100.9,3100.7,3.22501734]
[1765647095308,0.30069837,3100.8,3100.7,3.69601734]
[1765647096410,0.30069837,3100.8,3100.7,4.16551734]
[1765647102931,0.30069837,3100.8,3100.7,0.9405]
[1765647103304,0.30069837,3100.8,3100.7,1.35706457]
[1765647105749,0.30069837,3100.8,3100.7,4.58214277]
[1765647106105,0.30048418,3100.8,3100.7,4.58214277]
[1765647106457,0.30048418,3100.8,3100.7,0.88606457]
[1765647108216,0.30048418,3100.8,3100.7,1.35706457]
[1765647111437,0.30048418,3100.8,3100.7,4.11114277]
[1765647111608,0.58047529,3101.5,3100.7,4.58214277]
[1765647111813,0.30055857,3101.4,3101.2,0.4695]
[1765647112014,0.30055857,3101.3,3101.2,0.4695]
[1765647112943,0.30055857,3101.3,3101.2,0.9405]
[1765647113628,0.30055857,3101.3,3101.2,0.4695]
[1765647114052,0.30055857,3101.3,3101.2,0.9405]
[1765647114528,0.30055857,3101.3,3101.2,0.4695]
[1765647114711,0.30055857,3101.3,3101.2,1.32858746]
[1765647115642,0.30055857,3101.3,3100.9,3.22483446]
[1765647115943,0.30055857,3101.2,3100.9,0.509]
[1765647116130,0.30055857,3101.1,3100.9,1.0047]
[1765647116321,0.30055857,3101.0,3100.9,3.73386424]
[1765647116839,0.30055857,3101.0,3100.9,0.509]
[1765647117043,0.30055857,3101.0,3100.9,1.489]
[1765647117210,0.30055857,3101.0,3100.9,2.04451256]
[1765647119156,0.30055857,3101.0,3100.9,1.54881256]
[1765647119353,0.30055857,3101.0,3100.9,2.04451256]
[1765647119564,0.30055857,3101.0,3100.9,4.77368275]
[1765647119745,0.30055857,3101.0,3100.9,5.26938275]
[1765647121044,0.001,3101.7,3100.9,8.49425294]
[1765647121244,0.30062513,3101.6,3101.4,0.4843]
[1765647121447,0.30062513,3101.5,3101.4,0.4843]
[1765647121747,0.30062513,3101.5,3101.3,0.191]
[1765647121918,0.001,3101.7,3101.4,0.4843]
[1765647122119,0.001,3101.7,3101.6,0.4843]
[1765647122314,0.30153484,3101.7,3101.6,0.4843]
[1765647122848,0.78523484,3101.7,3101.4,0.4957]
[1765647123020,0.30053484,3101.6,3101.4,0.4957]
[1765647123221,0.30053484,3101.5,3101.4,0.4957]
[1765647123725,0.30053484,3101.5,3101.4,0.98]
[1765647123941,0.30053484,3101.5,3101.4,0.92384341]
[1765647124124,0.30053484,3101.5,3101.4,1.41954341]
[1765647127654,0.30053484,3101.5,3101.4,0.92384341]
[1765647130258,0.30053484,3101.5,3101.4,1.41954341]
[1765647130658,0.30053484,3101.5,3101.4,0.92384341]
[1765647130966,0.30053484,3101.5,3101.4,0.4843]
[1765647131125,0.78423484,3101.5,3101.1,3.41921562]
[1765647131458,0.30053484,3101.4,3101.1,4.42391562]
[1765647131755,0.30053484,3101.3,3101.1,3.73361562]
[1765647131956,0.9564,3101.5,3101.1,3.73361562]
[1765647132159,0.9564,3101.5,3101.1,5.00347043]
[1765647132160,0.30043424,3101.4,3101.1,5.00347043]
[1765647132378,0.30043424,3101.3,3101.1,5.00347043]
[1765647132675,0.4727,3101.5,3101.1,5.00347043]
[1765647132834,0.30042747,3101.4,3101.1,4.49447043]
[1765647133039,0.30042747,3101.3,3101.1,5.49917043]
[1765647133271,0.4737,3101.7,3101.2,1.01880404]
[1765647133437,0.30037769,3101.6,3101.2,1.99880404]
[1765647133628,0.30037769,3101.5,3101.2,1.99880404]
[1765647133833,0.30037769,3101.4,3101.2,1.99880404]
[1765647134044,0.30037769,3101.3,3101.2,5.22336227]
[1765647135462,0.78407769,3101.3,3101.2,1.01880404]
[1765647136240,0.30037769,3101.3,3101.2,1.50310404]
[1765647136439,0.30037769,3101.3,3101.2,4.72766227]
[1765647136765,0.30037769,3101.3,3101.2,5.22336227]
[1765647145890,0.30037769,3101.3,3101.2,4.72766227]
[1765647146747,0.30037769,3101.3,3101.2,5.20326227]
[1765647149179,0.30037769,3101.3,3101.2,4.72766227]
[1765647149793,0.30037769,3101.3,3101.2,1.50310404]
[1765647150465,0.79737769,3101.3,3101.2,1.01880404]
[1765647150981,0.30037769,3101.3,3101.2,1.01880404]
[1765647151162,0.30037769,3101.3,3101.2,1.49780404]
[1765647151363,0.30037769,3101.3,3101.2,4.72236227]
[1765647155988,0.30037769,3101.3,3101.2,5.19796227]
[1765647157479,0.30037769,3101.3,3101.2,5.49833996]
[1765647160790,0.30076577,3101.3,3101.2,5.49833996]
[1765647162069,0.30076577,3101.3,3101.2,9.32833996]
[1765647167580,0.001,3101.7,3101.2,9.32833996]
[1765647167780,0.30066678,3101.6,3101.3,1.74988548]
[1765647168068,0.30067281,3101.5,3101.4,0.509]
[1765647168268,0.30067281,3101.5,3101.4,0.9846]
[1765647168467,0.30067281,3101.5,3101.4,1.4636]
[1765647168772,0.30067281,3101.5,3101.4,1.76427281]
[1765647168972,0.001,3101.7,3101.4,6.70546487]
[1765647169173,0.001,3101.7,3101.6,0.479]
[1765647169399,0.30162178,3101.7,3101.6,0.479]
[1765647169896,0.30162178,3101.7,3101.6,4.30785813]
[1765647173196,0.30162178,3101.7,3101.6,1.59271576]
[1765647173395,0.30162178,3101.7,3101.6,2.5685279]
[1765647174200,0.30162178,3101.7,3101.6,2.0929279]
[1765647175001,0.30162178,3101.7,3101.6,5.31707027]
[1765647175381,0.30162178,3101.7,3101.6,2.0929279]
[1765647177184,0.77782178,3101.7,3101.6,2.0929279]
[1765647177379,0.77782178,3101.7,3101.6,0.63811576]
[1765647177898,0.77782178,3101.7,3101.6,3.86225813]
[1765647178684,0.30162178,3101.7,3101.6,4.32575813]
[1765647179401,0.30162178,3101.7,3101.6,4.82475813]
[1765647181304,0.30162178,3101.7,3101.6,1.60061576]
[1765647181508,0.30162178,3101.7,3101.6,1.10161576]
[1765647181684,0.30162178,3101.7,3101.6,4.32575813]
[1765647181883,0.30162178,3101.7,3101.6,5.51366798]
[1765647182982,0.30162178,3101.7,3101.6,6.01266798]
[1765647185014,0.30162178,3101.7,3101.6,5.51366798]
[1765647185518,0.30162178,3101.7,3101.6,6.01266798]
[1765647188112,0.30162178,3101.7,3101.6,4.32575813]
[1765647189013,0.30162178,3101.7,3101.6,1.10161576]
[1765647189194,0.79692178,3101.7,3101.6,0.63811576]
[1765647190515,0.79692178,3101.7,3101.6,0.12911576]
[1765647190720,8.744121,3101.5,3099.7,0.002]
[1765647190885,0.0046,3101.0,3099.8,3.22601458]
[1765647191085,0.80962178,3100.9,3100.2,0.79692178]
[1765647191310,0.30062178,3100.8,3099.9,0.509]
[1765647191511,0.30062178,3100.8,3099.7,0.002]
[1765647191512,0.4957,3100.0,3099.7,0.002]
[1765647191833,0.7001,3100.9,3099.7,0.002]
[1765647191834,0.6868,3099.8,3099.7,0.002]
[1765647192114,1.43205609,3099.8,3099.7,0.002]
[1765647192605,5.23854596,3099.8,3099.7,0.002]
[1765647193287,4.93848987,3099.8,3099.7,0.002]
[1765647193808,1.71247529,3099.8,3099.7,0.002]
[1765647195094,4.93848987,3099.8,3099.7,0.002]
[1765647196294,1.71247529,3099.8,3099.7,0.002]
[1765647198625,1.07617529,3099.8,3099.7,0.002]
[1765647200494,1.52137529,3099.8,3099.7,0.002]
[1765647203118,4.74738987,3099.8,3099.7,0.002]
[1765647204824,5.56381984,3099.8,3099.7,0.002]
[1765647204988,6.47832384,3099.8,3099.7,0.002]
[1765647205320,6.60755599,3099.8,3099.7,0.002]
[1765647207308,6.20205199,3099.8,3099.7,0.002]
[1765647209235,6.07281984,3099.8,3099.7,0.002]
[1765647209634,2.03037529,3099.8,3099.7,0.002]
[1765647210823,5.25638987,3099.8,3099.7,0.002]
[1765647211905,2.03037529,3099.8,3099.7,0.002]
[1765647213829,5.25638987,3099.8,3099.7,0.002]
[1765647214542,2.03037529,3099.8,3099.7,0.002]
[1765647214997,1.58517529,3099.8,3099.7,0.002]
[1765647215196,2.03037529,3099.8,3099.7,0.002]
[1765647215420,5.25638987,3099.8,3099.7,0.002]
[1765647216722,2.03037529,3099.8,3099.7,0.002]
[1765647218404,2.32910075,3099.8,3099.7,0.002]
[1765647218705,5.55511533,3099.8,3099.7,0.002]
[1765647219406,2.32910075,3099.8,3099.7,0.002]
[1765647220329,5.55511533,3099.8,3099.7,0.002]
[1765647220702,5.10991533,3099.8,3099.7,0.002]
[1765647220909,1.88390075,3099.8,3099.7,0.002]
[1765647221309,2.32910075,3099.8,3099.7,0.002]
[1765647221730,1.38820075,3099.8,3099.7,0.002]
[1765647222110,1.84210075,3099.8,3099.7,0.002]
[1765647222708,5.52161533,3099.8,3099.7,0.002]
[1765647234451,1.84210075,3099.8,3099.7,0.002]
[1765647235446,5.06811533,3099.8,3099.7,0.002]
[1765647238354,5.52491533,3099.8,3099.7,0.002]
[1765647239218,1.84210075,3099.8,3099.7,0.002]
[1765647239445,1.38820075,3099.8,3099.7,0.4985]
[1765647240351,1.38820075,3099.8,3099.7,0.002]
[1765647240539,1.390384,3099.8,3099.7,0.4985]
[1765647242350,0.881384,3099.8,3099.7,0.9691]
[1765647243259,0.881384,3099.8,3099.7,1.38884029]
[1765647243929,0.881384,3099.8,3099.7,0.91824029]
[1765647244135,0.881384,3099.8,3099.7,0.002]
[1765647244342,1.356984,3099.8,3099.7,0.002]
[1765647245248,0.881384,3099.8,3099.7,0.4985]
[1765647245438,0.881384,3099.8,3099.7,0.9691]
[1765647246555,0.881384,3099.8,3099.7,0.4985]
[1765647246945,0.881384,3099.8,3099.7,0.9691]
[1765647247138,0.881384,3099.8,3099.7,0.4985]
[1765647247460,0.881384,3099.8,3099.7,0.9691]
[1765647250769,0.881384,3099.8,3099.7,1.38884204]
[1765647253560,0.881384,3099.8,3099.7,0.9691]
[1765647253882,0.88118743,3099.8,3099.7,0.9691]
[1765647257249,0.88118743,3099.8,3099.7,0.4985]
[1765647258635,1.35678743,3099.8,3099.7,0.002]
[1765647258966,0.88118743,3099.8,3099.7,0.4985]
[1765647259168,0.88118743,3099.8,3099.7,1.40215]
[1765647263682,0.88118743,3099.8,3099.7,1.35215]
[1765647266790,0.88118743,3099.8,3099.7,0.88155]
[1765647266990,0.88118743,3099.8,3099.7,0.4485]
[1765647268381,0.8812074,3099.8,3099.7,0.4485]
[1765647272657,1.3423074,3099.8,3099.5,4.2973]
[1765647272956,0.30073211,3099.7,3099.5,4.2973]
[1765647273158,0.30073211,3099.6,3099.5,4.2973]
[1765647273678,0.30073211,3099.6,3099.5,4.7691]
[1765647273880,0.30073211,3099.6,3099.5,5.56885992]
[1765647283094,0.1911,3100.9,3099.5,8.79518674]
[1765647283393,0.1911,3100.9,3100.2,0.617]
[1765647283687,0.30078668,3100.8,3100.2,0.617]
[1765647283989,0.30078668,3100.7,3100.3,0.4653]
[1765647284199,0.30078668,3100.6,3100.3,0.4653]
[1765647284356,0.30078668,3100.5,3100.3,0.4653]
[1765647284561,0.30078668,3100.4,3100.3,0.4653]
[1765647284978,0.30078668,3100.4,3100.3,0.9371]
[1765647285285,0.4894,3100.8,3100.3,4.36770146]
[1765647285479,0.30040917,3100.7,3100.3,4.36770146]
[1765647285679,0.30040917,3100.6,3100.3,4.36770146]
[1765647285870,0.30040917,3100.5,3100.3,4.36770146]
[1765647286068,0.4894,3100.8,3100.3,4.36770146]
[1765647286388,0.30041353,3100.7,3100.3,4.36770146]
[1765647286571,0.30041353,3100.6,3100.3,4.36770146]
[1765647286763,0.30041353,3100.5,3100.3,4.36770146]
[1765647286964,0.4894,3100.8,3100.3,4.36770146]
[1765647287176,0.30030183,3100.7,3100.3,4.36770146]
[1765647287384,0.30030183,3100.6,3100.3,4.36770146]
[1765647287561,0.4894,3100.8,3100.3,4.36770146]
[1765647287762,0.30021263,3100.7,3100.3,4.36770146]
[1765647288000,0.30021263,3100.6,3100.4,1.33602678]
[1765647288209,0.6805,3100.9,3100.4,1.33602678]
[1765647288367,0.30019896,3100.8,3100.4,1.33602678]
[1765647288703,0.30019896,3100.7,3100.4,1.33602678]
[1765647288905,0.30019896,3100.6,3100.4,0.87072678]
[1765647289086,1.08947529,3101.0,3100.5,1.21798225]